Workbook

Sheet impuestos
A1: =M24 -> MAYO | C1: ='[1]Resumen Impuestos'!A6 -> 2019 | P1: =IFERROR(VLOOKUP(7,[1]Santiago!A63:A235,2,FALSE),"") -> 
A4: Impuestos | F4: Otros | J4: Precios de | P4: Periodicos
A5: Gas | F5: Lavanderia | G5: 400 | J5: Caramelos | R5: $ x Unidad | S5: Dias | T5: $ Mensual
A6: Cable | C6: 965 | F6: Café | G6: 317.61 | J6: Billiken | K6: Unidades | P6: Ecos Diarios Semanal | R6: 50 | S6: =([1]Santiago!B65-S7) -> 18 | T6: =R6*S6 -> 900 | U6: Final
A7: Telefono | D7: Cons. Mes | F7: Diarios y Revistas | H7: =S10 -> 1100 | J7: 11.01 | K7: 0 | L7: =J7*K7 -> 0 | P7: Ecos Diarios Sabados | R7: 50 | S7: =VLOOKUP(A1,'[2]Facturacion Mes'!$A$9:$J$20,10,FALSE) -> 4 | T7: =R7*S7 -> 200 | U7: =SUM(T6:T7) -> 1100
A8: Luz | F8: Limpieza | G8: 400 | J8: Misky
A9: Arba Inmobiliario | F9: Caramelos | H9: =L12 -> 0 | J9: 96.79 | L9: =J9*K9 -> 0 | P9: Diariero
A10: Tasa inmobiliaria | F10: Gaseosas | G10: 200 | J10: Arcor | S10: =$U$7 -> 1100
A11: Camara Comercial | F11: Panaderia | H11: =M17 -> 800 | J11: 108.89 | K11: 0 | L11: =J11*K11 -> 0 | P11: Sabados | Q11: Retiro | R11: Entrego | S11: Saldo | T11: Por Semana
A12: Cuota seguro | C12: 2698 | F12: Cera 8M | G12: 406.55 | K12: =SUM(K7+K9+K11) -> 0 | L12: =SUM(L7+L9+L11) -> 0 | P12: =IFERROR(VLOOKUP(7,'[1]Plata Diaria'!A5:B8,2,FALSE),"") -> 2019-05-04 | S12: =IF(P12="",S10,S10+Q12-R12) -> 1100 | T12: =S10/(COUNT(P12:P16)) -> 275
A13: Seg. E Higiene | F13: Otros | P13: =IFERROR(VLOOKUP(7,'[1]Plata Diaria'!A9:B13,2,FALSE),"") ->  | S13: =S12-Q13+R13 -> 1100
A14: Internet | C14: 1858 | P14: =IFERROR(VLOOKUP(7,'[1]Plata Diaria'!A15:B20,2,FALSE),"") -> 2019-05-11 | S14: =S13-Q14+R14 -> 1100
A15: AdiCapif | C15: 150 | H15: 0 | J15: Panaderia | L15: x Dia | M15: Dias x Mes | P15: =IFERROR(VLOOKUP(7,'[1]Plata Diaria'!A22:B27,2,FALSE),"") -> 2019-05-18 | S15: =S14-Q15+R15 -> 1100
A16: Perfumina | H16: 0 | L16: 100 | M16: =COUNT(P12:P16)*2 -> 8 | P16: =IFERROR(VLOOKUP(7,'[1]Plata Diaria'!A29:B37,2,FALSE),"") -> 2019-05-25
C17: 0 | H17: =SUM(H5:H16) -> 1900 | L17: Final | M17: =L16*M16 -> 800
A18: Luz Semana | C18: =SUM(C5:C17) -> 5671
A19: =D8/4 -> 0
P20: Otros | R20: $ x Unidad | S20: Dias | T20: $ Mensual
S21: =([1]Santiago!B65-S22) -> 18 | T21: =R21*S21 -> 0 | U21: Final
S22: =S7 -> 4 | T22: =R22*S22 -> 0 | U22: =SUM(T21:T22) -> 0
A23: Gastos Extras | D23: Dia | E23: Entrego | F23: Se Debe | H23: Publicidad
M24: =[1]Santiago!A14 -> MAYO
H25: Dia | I25: Costo | J25: Entrego | K25: Saldo | M25: Gasto Final
M26: =C$18+H$17+E$30+K31 -> 7571
P27: Cortes del mes
M28: $ Diaria | P28: =[1]Santiago!I3 -> 42
M29: =$M$26/[1]Santiago!B65 -> 344.1363636 | P29: % de los cortes
C30: =SUM(C24:C29) -> 0 | E30: =SUM(E24:E29) -> 0 | F30: =SUM(F24:F29) -> 0 | P30: =IFERROR(M32/P28,"") -> 0.0372441952
K31: =SUM(J26:J30) -> 0 | M31: Equivalentes en Cortes
M32: =M29/[1]Santiago!B2 -> 1.564256198

Sheet Hoja2
A1: Resumen Anual de Impuestos
A4: 2018 | C4: Diciembre | D4: 16465.66 | F4: 748.4 | G4: 5.4 | I4: 180 | J4: 39.45 | K4: =I4/J4 -> 4.562737643 | L4: 1145 | M4: Impuestos
A5: Año | B5: Laborables | C5: Mes | D5: Gasto final | E5: % | F5: Pesos x Dia | G5: Cortes Diarios | H5: % | I5: Valor Corte | J5: Valor Dólar | K5: $ en Dolares | L5: Cortes mes | M5: Equi. en % | R5: enero | S5: 200
A6: 2019 | B6: 22 | C6: Enero | D6: 19292.63 | E6: =IFERROR((D6-D4)/(ABS(D4)),"") -> 0.171688836 | F6: 877 | G6: 4.4 | H6: =IFERROR((G6-G4)/ABS(G4),"") -> -0.1851851852 | I6: 200 | J6: 38.5 | K6: =IFERROR(I6/J6,"") -> 5.194805195 | L6: 1044 | M6: =IFERROR((G6*B6)/L6,"") -> 0.09272030651 | R6: febrero | S6: 200
B7: 20 | C7: Febrero | D7: 15478.15 | E7: =IFERROR(((D7-D6)/ABS(D6)),"") -> -0.197716952 | F7: 774 | G7: 3.9 | H7: =IFERROR(((G7-G6)/ABS(G6)),"") -> -0.1136363636 | I7: 200 | J7: 38.5 | K7: =IFERROR(I7/J7,"") -> 5.194805195 | L7: 927 | M7: =IFERROR((G7*B7)/L7,"") -> 0.08414239482 | R7: marzo | S7: 200
B8: 22 | C8: Marzo | D8: 18841.23 | E8: =IFERROR(((D8-D7)/ABS(D7)),"") -> 0.2172791968 | F8: 856 | G8: 4.3 | H8: =IFERROR(((G8-G7)/ABS(G7)),"") -> 0.1025641026 | I8: 200 | J8: 44.64 | K8: 4.480286738 | L8: 981 | M8: 0.09643221203 | R8: abril | S8: 200
B9: 22 | C9: Abril | D9: 13757.51 | E9: -0.2698189025 | F9: 625 | G9: 3.1 | H9: -0.2790697674 | I9: 200 | J9: 46.3 | K9: 4.319654428 | L9: 988 | M9: 0.06902834008 | R9: mayo | S9: 220
B10: =IF(C10=$D$25,[1]Santiago!$B$65,"") -> 22 | C10: Mayo | D10: =IF(C10=$D$25,impuestos!M26,"") -> 7571 | E10: -0.4496823917 | F10: =IF(C10=$D$25,impuestos!M29,"") -> 344.1363636 | G10: =IF(C10=$D$25,impuestos!M32,"") -> 1.564256198 | H10: -0.4954012263 | I10: =IF(C10=$D$25,S9,"") -> 220 | J10: 46.5 | K10: 4.731182796 | L10: =IF(C10=$D$25,impuestos!P28) -> 42 | M10: 0.8193722944 | R10: junio
B11: =IF(C11=$D$25,[1]Santiago!$B$65,"") ->  | C11: Junio | D11: =IF(C11=$D$25,[1]Imuestos!$M$26,"") ->  | F11: =IF(C11=$D$25,[1]Imuestos!$M$29,"") ->  | G11: =IF(C11=$D$25,[1]Imuestos!$M$32,"") ->  | I11: =IF(C11=$D$25,IF([1]Santiago!$E$11="",[1]Santiago!$B$2,[1]Santiago!$B$2)) -> FALSE | L11: =IF(C11=$D$25,[1]Santiago!$I$3,"") ->  | R11: julio
B12: =IF(C12=$D$25,[1]Santiago!$B$65,"") ->  | C12: Julio | D12: =IF(C12=$D$25,[1]Imuestos!$M$26,"") ->  | F12: =IF(C12=$D$25,[1]Imuestos!$M$29,"") ->  | G12: =IF(C12=$D$25,[1]Imuestos!$M$32,"") ->  | I12: =IF(C12=$D$25,IF([1]Santiago!$E$11="",[1]Santiago!$B$2,[1]Santiago!$B$2)) -> FALSE | L12: =IF(C12=$D$25,[1]Santiago!$I$3,"") ->  | R12: agosto
B13: =IF(C13=$D$25,[1]Santiago!$B$65,"") ->  | C13: Agosto | D13: =IF(C13=$D$25,[1]Imuestos!$M$26,"") ->  | F13: =IF(C13=$D$25,[1]Imuestos!$M$29,"") ->  | G13: =IF(C13=$D$25,[1]Imuestos!$M$32,"") ->  | I13: =IF(C13=$D$25,IF([1]Santiago!$E$11="",[1]Santiago!$B$2,[1]Santiago!$B$2)) -> FALSE | L13: =IF(C13=$D$25,[1]Santiago!$I$3,"") ->  | R13: septiembre
B14: =IF(C14=$D$25,[1]Santiago!$B$65,"") ->  | C14: Septiembre | D14: =IF(C14=$D$25,[1]Imuestos!$M$26,"") ->  | F14: =IF(C14=$D$25,[1]Imuestos!$M$29,"") ->  | G14: =IF(C14=$D$25,[1]Imuestos!$M$32,"") ->  | I14: =IF(C14=$D$25,IF([1]Santiago!$E$11="",[1]Santiago!$B$2,[1]Santiago!$B$2)) -> FALSE | L14: =IF(C14=$D$25,[1]Santiago!$I$3,"") ->  | R14: octubre
B15: =IF(C15=$D$25,[1]Santiago!$B$65,"") ->  | C15: Octubre | D15: =IF(C15=$D$25,[1]Imuestos!$M$26,"") ->  | F15: =IF(C15=$D$25,[1]Imuestos!$M$29,"") ->  | G15: =IF(C15=$D$25,[1]Imuestos!$M$32,"") ->  | I15: =IF(C15=$D$25,IF([1]Santiago!$E$11="",[1]Santiago!$B$2,[1]Santiago!$B$2)) -> FALSE | L15: =IF(C15=$D$25,[1]Santiago!$I$3,"") ->  | R15: noviembre
B16: =IF(C16=$D$25,[1]Santiago!$B$65,"") ->  | C16: Noviembre | D16: =IF(C16=$D$25,[1]Imuestos!$M$26,"") ->  | F16: =IF(C16=$D$25,[1]Imuestos!$M$29,"") ->  | G16: =IF(C16=$D$25,[1]Imuestos!$M$32,"") ->  | I16: =IF(C16=$D$25,IF([1]Santiago!$E$11="",[1]Santiago!$B$2,[1]Santiago!$B$2)) -> FALSE | L16: =IF(C16=$D$25,[1]Santiago!$I$3,"") ->  | R16: diciembre
B17: =IF(C17=$D$25,[1]Santiago!$B$65,"") ->  | C17: Diciembre | D17: =IF(C17=$D$25,[1]Imuestos!$M$26,"") ->  | F17: =IF(C17=$D$25,[1]Imuestos!$M$29,"") ->  | G17: =IF(C17=$D$25,[1]Imuestos!$M$32,"") ->  | I17: =IF(C17=$D$25,IF([1]Santiago!$E$11="",[1]Santiago!$B$2,[1]Santiago!$B$2)) -> FALSE | L17: =IF(C17=$D$25,[1]Santiago!$I$3,"") -> 
C18: Promedios | D18: =SUM(D6:D17)/COUNT(D6:D17) -> 14988.104 | F18: =SUM(F6:F17)/COUNT(F6:F17) -> 695.2272727 | G18: =SUM(G6:G17)/COUNT(G6:G17) -> 3.45285124 | L18: =SUM(L6:L17)/COUNT(L6:L17) -> 796.4 | M18: =SUM(M6:M17)/COUNT(M6:M17) -> 0.2323391096
A21: Aumento Precios en Porcentajes
F22: se actualixa según mes en curso
A25: Mensuales | C25: ENERO | D25: =[1]Imuestos!M24 -> MAYO | E25: % Aumento | G25: No Mensuales | I25: ENERO | J25: =[1]Imuestos!M24 -> MAYO | K25: % Aumento | M25: Por Periodos
M26: Gas | R26: Luz
A27: Cable | C27: 650 | D27: =[1]Imuestos!C6 -> 965 | E27: =IF(D27=0,"",IFERROR((D27-C27)/ABS(C27),"")) -> 0.4846153846 | G27: Arba Inmobiliario | I27: 779.5 | J27: =[1]Imuestos!C9 -> 0 | K27: =IF(J27=0,"",IFERROR((J27-I27)/ABS(I27),"")) ->  | N27: 2018 | O27: 2019 | P27: % | S27: 2018 | T27: 2019 | U27: %
A28: Telefono | C28: 29.41 | D28: =[1]Imuestos!C7 -> 0 | E28: =IF(D28=0,"",IFERROR((D28-C28)/ABS(C28),"")) ->  | G28: Gaseosa | I28: 230 | J28: =[1]Imuestos!G10 -> 200 | K28: -0.1304347826 | M28: Enero | N28: 400.36 | O28: 676.28 | P28: =IF(O28=0,"",IFERROR((O28-N28)/ABS(N28),"")) -> 0.6891797382 | R28: Enero | S28: 2041.25 | T28: 3229.27 | U28: =IF(T28=0,"",IFERROR((T28-S28)/ABS(S28),"")) -> 0.5820061237
A29: Luz | C29: 3229.27 | D29: =[1]Imuestos!D8 -> 0 | G29: Café | I29: 186 | J29: =[1]Imuestos!G6 -> 317.61 | K29: 0.7075806452 | M29: Febrero | N29: 400.21 | O29: 660.5 | P29: 0.6503835486 | R29: Febrero | S29: 2211.58 | T29: 3229.27 | U29: 0.4601642265
A30: Tasa inmobiliaria | C30: 342.44 | D30: =[1]Imuestos!C10 -> 0 | G30: Caramelos | I30: 76.13 | J30: =[1]Imuestos!J9 -> 96.79 | K30: 0.2713779062 | M30: Marzo | N30: 397.59 | O30: 653 | P30: 0.6423954325 | R30: Marzo | S30: 3210.05 | T30: 4923.04 | U30: 0.5336334325
A31: Camara Comercial | C31: 100 | D31: =[1]Imuestos!C11 -> 0 | G31: Cera 8M | I31: 350 | J31: =[1]Imuestos!G12 -> 406.55 | K31: 0.1615714286 | M31: Abril | N31: 402.06 | O31: 668.42 | P31: 0.6624881858 | R31: Abril | S31: 3210.05 | T31: 3541.14 | U31: 0.1031416956
A32: Cuota seguro | C32: 2698 | D32: =[1]Imuestos!C12 -> 2698 | E32: 0 | M32: Mayo | N32: 534.9 | O32: 823.56 | P32: 0.5396522715 | R32: Mayo | S32: 2958.79 | T32: 4023.26 | U32: 0.3597653095
A33: Diarios | C33: 990 | D33: =[1]Imuestos!U7 -> 1100 | E33: 0.1111111111 | M33: Junio | N33: 612.6 | O33: 1034.09 | P33: 0.6880346066 | R33: Junio | S33: 2963.82 | T33: 4082.14 | U33: 0.3773238591
A34: Internet | C34: 900 | D34: =[1]Imuestos!C14 -> 1858 | E34: 1.064444444 | M34: Julio | N34: 811.31 | O34: =[1]Imuestos!C5 -> 0 | R34: Julio | S34: 2245.69 | T34: =[1]Imuestos!D8 -> 0
A35: AdiCapif | C35: 150 | D35: =[1]Imuestos!C15 -> 150 | E35: 0 | M35: Agosto | N35: 857.94 | R35: Agosto | S35: 2250.62
A36: Limpieza | C36: 300 | D36: =[1]Imuestos!G8 -> 400 | E36: 0.3333333333 | M36: Septiembre | N36: 844.74 | R36: Septiembre | S36: 2156.98
A37: Contador | C37: 600 | D37: =[1]Monotributos!C10 -> 600 | E37: 0 | M37: Octubre | N37: 627.03 | R37: Octubre | S37: 2156.98
A38: Panaderia | C38: 800 | D38: =[1]Imuestos!M17 -> 800 | E38: 0 | M38: Noviembre | N38: 795.88 | R38: Noviembre | S38: 2558.47
A39: Lavanderia | C39: 280 | D39: =[1]Imuestos!G5 -> 400 | E39: 0.4285714286 | M39: Diciembre | N39: 761.9 | R39: Diciembre | S39: 2564.7
